bitfinex-derivatives/quotes_ETHF0:USTF0_20250220
["timestamp","ask_amount","ask_price","bid_price","bid_amount"]
[1740062294252,0.72431,2760.9,2760.8,0.72432]
[1740062294548,0.72437,2760.7,2760.6,0.72438]
[1740062294952,1.81068,2761.1,2760.5,3.2078]
[1740062295161,0.72428,2761.1,2761.0,0.72427]
[1740062295456,3.2078,2761.3,2760.6,7.36598]
[1740062295656,0.72424,2761.2,2761.1,0.72423]
[1740062295959,3.2078,2761.3,2761.2,0.72423]
[1740062296147,0.00543134,2761.5,2761.4,0.72418]
[1740062296350,0.72408,2761.8,2761.6,0.72411]
[1740062296547,0.72416,2761.5,2761.3,6.28319]
[1740062296750,0.72416,2761.5,2761.3,3.30819]
[1740062296947,0.5515,2762.1,2761.3,2.584]
[1740062297454,0.00543134,2762.0,2761.5,3.2078]
[1740062297655,0.72406,2761.9,2761.7,0.72408]
[1740062298258,0.72946134,2762.0,2761.8,0.72406]
[1740062298460,0.72406,2761.9,2761.7,0.72409]
[1740062298765,1.81013,2761.9,2761.2,3.21323134]
[1740062299057,3.21323134,2762.0,2761.2,3.21323134]
[1740062299559,5.02335134,2762.0,2761.2,3.21323134]
[1740062299757,0.7242,2761.4,2761.2,3.21323134]
[1740062300055,0.5582,2761.9,2761.2,3.21323134]
[1740062300262,0.5582,2761.9,2761.2,0.00543134]
[1740062300263,3.2078,2761.7,2761.2,0.00543134]
[1740062300455,0.72414,2761.6,2761.2,3.21323134]
[1740062300653,3.93192,2761.7,2761.4,0.72417]
[1740062300850,3.2078,2761.7,2761.2,3.21323134]
[1740062301055,0.7242,2761.3,2761.2,0.00543134]
[1740062304056,0.72442,2760.5,2760.3,3.2078]
[1740062304257,0.72444,2760.4,2760.3,3.2078]
[1740062304461,3.7639,2760.9,2760.1,0.5437]
[1740062304856,0.72449,2760.2,2760.1,0.5437]
[1740062305163,0.00543134,2760.4,2759.7,3.2078]
[1740062305454,0.72456,2760.0,2759.7,3.2078]
[1740062305653,0.72456,2760.0,2759.7,3.9324]
[1740062305849,0.72456,2760.0,2759.7,3.2078]
[1740062306050,0.00543134,2760.4,2759.8,0.72459]
[1740062306265,0.00543134,2760.4,2759.7,3.2078]
[1740062306456,0.7245,2760.2,2760.0,0.72453]
[1740062306655,0.72448,2760.3,2760.0,0.72453]
[1740062306860,0.72453,2760.1,2759.8,0.72458]
[1740062307264,0.72457,2760.0,2759.7,3.93241]
[1740062307660,3.2078,2760.3,2759.5,0.5437]
[1740062307965,3.2078,2759.8,2759.1,3.2078]
[1740062308162,0.72472,2759.4,2759.1,3.93258]
[1740062308366,1.81157,2759.7,2759.1,3.2078]
[1740062308562,0.72474,2759.3,2759.1,3.2078]
[1740062308865,0.72472,2759.4,2759.2,0.72476]
[1740062309063,0.72472,2759.4,2759.1,3.93256]
[1740062309267,0.72471,2759.4,2759.2,0.72475]
[1740062309467,0.7247,2759.4,2759.2,0.72475]
[1740062309662,3.32866,2759.6,2759.4,0.72469]
[1740062309859,0.5537,2759.9,2759.1,3.2078]
[1740062310059,0.5537,2759.9,2758.9,3.196]
[1740062310060,0.72464,2759.7,2759.5,0.72466]
[1740062310254,2.96,2760.1,2759.4,3.2078]
[1740062310459,2.96,2760.1,2759.7,3.2078]
[1740062310668,0.72454,2760.1,2759.8,0.7246]
[1740062310873,3.7894,2760.2,2759.7,3.2078]
[1740062311257,0.72456,2760.0,2759.8,0.72458]
[1740062311560,3.7894,2760.2,2759.7,3.2078]
[1740062311763,1.81131,2760.1,2759.4,3.2078]
[1740062311959,3.2078,2759.9,2759.1,3.2078]
[1740062312159,0.72472,2759.4,2759.2,0.72474]
[1740062312357,0.72469,2759.5,2759.3,0.72471]
[1740062312563,5.57,2760.1,2759.1,3.2078]
[1740062312763,2.61,2760.1,2759.6,0.72464]
[1740062312968,2.61,2760.1,2759.4,3.2078]
[1740062313171,0.7246,2759.8,2759.7,0.72461]
[1740062313370,1.81137,2760.0,2759.4,3.93249]
[1740062313566,2.61,2760.1,2759.4,3.2078]
[1740062313867,0.7246,2759.9,2759.4,3.2078]
[1740062314069,0.72462,2759.7,2759.6,0.72463]
[1740062314466,2.61,2760.1,2759.4,3.2078]
[1740062314674,0.7246,2759.8,2759.4,3.2078]
[1740062314872,2.61,2760.1,2759.7,0.72462]
[1740062315072,2.61,2760.1,2760.0,0.72455]
[1740062315261,0.72453,2760.1,2759.9,0.72455]
[1740062315468,0.5816,2760.2,2759.9,0.72455]
[1740062315669,0.72455,2760.0,2759.7,3.2078]
[1740062315880,0.5816,2760.2,2759.8,0.72459]
[1740062316172,0.72454,2760.1,2759.9,0.72456]
[1740062316568,0.5816,2760.2,2760.1,0.72452]
[1740062316866,0.72456,2760.0,2759.9,0.72457]
[1740062317071,0.72454,2760.1,2759.9,0.72457]
[1740062317370,0.5816,2760.2,2759.9,0.72457]
[1740062317571,0.72458,2759.9,2759.7,3.2078]
[1740062317771,0.72458,2759.9,2759.8,0.7246]
[1740062317973,0.5816,2760.2,2759.7,3.2078]
[1740062317974,0.72453,2760.1,2759.7,3.2078]
[1740062318272,0.72453,2760.1,2759.9,0.72455]
[1740062318567,0.5816,2760.2,2759.8,0.72459]
[1740062318774,0.7246,2759.8,2759.7,3.93241]
[1740062318975,0.7246,2759.8,2759.7,3.2078]
[1740062319168,5.60067,2760.2,2758.6,12.6]
[1740062319169,5.01929,2759.9,2759.2,3.93253]
[1740062319370,0.72473,2759.3,2759.2,3.2078]
[1740062319572,0.72472,2759.4,2759.2,3.2078]
[1740062320073,2.612,2759.7,2759.2,3.2078]
[1740062320278,0.72467,2759.6,2759.2,3.2078]
[1740062320475,0.72464,2759.7,2759.5,0.72466]
[1740062320775,1.8114,2760.0,2759.2,3.2078]
[1740062320776,2.624,2760.0,2759.2,3.2078]
[1740062321172,0.72462,2759.8,2759.6,0.72463]
[1740062321375,0.72462,2759.7,2759.6,0.72463]
[1740062321570,2.624,2760.0,2759.7,0.72461]
[1740062321782,0.7246,2759.8,2759.7,0.72461]
[1740062321979,2.624,2760.0,2759.6,0.72464]
[1740062322275,0.72462,2759.7,2759.6,0.72464]
[1740062322471,2.624,2760.0,2759.5,0.72466]
[1740062322676,0.72473,2759.3,2759.2,3.93255]
[1740062322973,0.72473,2759.3,2759.2,3.2078]
[1740062323177,0.72473,2759.3,2759.2,3.93256]
[1740062323379,2.62,2759.6,2759.2,3.93256]
[1740062323876,0.72473,2759.3,2759.2,3.2078]
[1740062324776,0.72473,2759.3,2759.2,3.93256]
[1740062325180,0.72473,2759.3,2759.2,3.2078]
[1740062325378,0.5339,2759.5,2759.2,3.2078]
[1740062325581,0.72473,2759.3,2759.2,3.93254]
[1740062325780,0.72473,2759.3,2759.2,3.2078]
[1740062326282,0.72473,2759.3,2759.2,3.93256]
[1740062329693,0.5339,2759.5,2759.2,3.2078]
[1740062329982,0.72473,2759.3,2759.2,3.93252]
[1740062330182,2.92309,2759.7,2759.2,3.2078]
[1740062330385,0.72472,2759.4,2759.3,0.72471]
[1740062330582,2.604,2759.8,2759.2,3.2078]
[1740062330784,0.72469,2759.5,2759.4,0.72467]
[1740062331083,2.604,2759.8,2759.2,3.2078]
[1740062331488,0.72466,2759.7,2759.6,0.72464]
[1740062331687,0.72469,2759.5,2759.4,0.72468]
[1740062331889,2.604,2759.8,2759.2,5.01966]
[1740062332192,0.72467,2759.6,2759.5,0.72465]
[1740062333684,5.8118,2759.8,2759.2,3.2078]
[1740062333888,0.72472,2759.4,2759.3,0.72471]
[1740062334089,0.72473,2759.3,2759.2,3.93253]
[1740062334291,1.81158,2759.7,2759.2,3.2078]
[1740062334593,0.72473,2759.3,2759.2,3.93254]
[1740062334794,0.72473,2759.3,2759.2,3.2078]
[1740062335487,1.81187,2759.3,2758.6,3.2078]
[1740062335688,0.72489,2758.7,2758.6,3.2078]
[1740062335889,2.599,2758.9,2758.6,3.2078]
[1740062336091,0.72487,2758.8,2758.7,0.72488]
[1740062336287,3.32928134,2758.9,2758.7,0.72488]
[1740062336486,3.32928134,2758.9,2758.6,3.2078]
[1740062336487,0.72488,2758.8,2758.6,3.9327]
[1740062336792,2.60443134,2758.9,2758.8,0.72486]
[1740062336993,0.00543134,2758.9,2758.8,0.72486]
[1740062340089,0.73026134,2758.9,2758.8,0.72486]
[1740062340585,0.72488,2758.8,2758.7,0.72488]
[1740062340993,0.72489,2758.7,2758.6,3.2078]
[1740062341691,0.72497,2758.4,2758.3,5.03868]
[1740062341886,1.81219,2758.8,2758.3,3.2078]
[1740062342190,0.72497,2758.4,2758.3,3.2078]
[1740062342497,2.598,2758.7,2757.8,3.2078]
[1740062342793,1.81251,2758.3,2757.5,1.0999]
[1740062342999,1.81262,2758.1,2757.0,3.2078]
[1740062343291,0.72519,2757.6,2757.0,3.7602]
[1740062343496,3.33313,2757.8,2757.0,3.7602]
[1740062343684,2.608,2757.8,2757.4,0.72522]
[1740062343889,0.72515,2757.7,2757.3,0.72524]
[1740062344290,2.608,2757.8,2757.0,3.7602]
[1740062344886,3.33314,2757.8,2757.4,0.72522]
[1740062345291,3.33314,2757.8,2757.3,3.2078]
[1740062345602,0.72515,2757.7,2757.3,3.2078]
[1740062345991,3.2078,2757.7,2757.0,3.2078]
[1740062346191,0.5676,2757.6,2757.0,3.2078]
[1740062346496,3.2078,2757.2,2756.4,3.2078]
[1740062346799,0.7254,2756.8,2756.4,3.93327]
[1740062347190,2.62743134,2757.1,2756.1,3.2078]
[1740062347492,3.2078,2756.9,2756.1,3.2078]
[1740062347693,0.72542,2756.7,2756.3,0.7255]
[1740062347889,3.2078,2756.9,2756.4,0.72549]
[1740062348096,0.72539,2756.8,2756.1,3.2078]
[1740062348492,0.72543,2756.7,2756.4,0.72547]
[1740062348897,0.7254,2756.8,2756.5,0.72547]
[1740062349098,2.62743134,2757.1,2756.4,0.72548]
[1740062349299,2.62743134,2757.1,2756.1,3.2078]
[1740062349701,0.7255,2756.4,2756.1,3.93336]
[1740062350098,3.2078,2756.9,2756.1,3.2078]
[1740062350099,0.72554,2756.2,2756.1,3.2078]
[1740062350304,0.72547,2756.5,2755.8,1.1319]
[1740062350503,0.72559,2756.1,2755.8,1.1319]
[1740062350702,0.72559,2756.1,2755.8,1.85754]
[1740062350906,2.622,2756.3,2755.8,1.1319]
[1740062351107,3.2078,2756.6,2756.5,0.72547]
[1740062351422,3.2078,2756.6,2755.9,3.2078]
[1740062351423,3.93325,2756.6,2756.4,0.72549]
[1740062351604,3.93325,2756.6,2756.3,0.7255]
[1740062352108,3.93325,2756.6,2756.4,13.32548]
[1740062352311,3.93325,2756.6,2756.4,13.32549]
[1740062352812,0.00543134,2757.1,2756.5,3.2078]
[1740062353112,0.00543134,2757.1,2757.0,0.72533]
[1740062353404,0.72537,2756.9,2756.7,0.7254]
[1740062353601,0.00543134,2757.1,2757.0,0.72533]
[1740062354201,0.5746,2758.2,2757.0,0.72533]
[1740062354202,6.4024,2758.2,2757.3,0.72524]
[1740062354405,1.1181,2758.1,2757.3,3.2078]
[1740062354609,0.72513,2757.8,2757.5,0.72519]
[1740062354814,1.1181,2758.1,2757.8,0.72512]
[1740062355108,3.7824,2758.2,2757.6,3.2078]
[1740062355403,3.21324149,2758.2,2757.7,0.73057149]
[1740062355713,3.21324149,2758.2,2757.7,0.00544149]
[1740062356309,0.72508,2758.0,2757.7,0.00544149]
[1740062356506,3.21324149,2758.2,2757.7,0.00544149]
[1740062356701,0.72512,2757.8,2757.7,0.00544149]
[1740062357115,0.72511,2757.9,2757.7,0.00544149]
[1740062357605,3.21324149,2758.2,2758.0,0.72505]
[1740062358311,3.21324149,2758.2,2757.7,0.00544149]
[1740062358604,0.72512,2757.8,2757.7,0.00544149]
[1740062359010,1.30672,2757.8,2757.7,0.00544149]
[1740062360004,0.72527,2757.3,2757.0,0.72532]
[1740062360500,0.72523,2757.5,2756.9,1.1223]
[1740062360706,0.72523,2757.4,2757.1,0.72528]
[1740062360908,0.72525,2757.4,2757.0,0.72533]
[1740062361108,0.72527,2757.3,2757.0,0.72533]
[1740062361411,0.72527,2757.3,2757.1,0.7253]
[1740062361605,0.72522,2757.5,2757.2,0.72528]
[1740062361807,0.72524,2757.4,2756.9,1.1223]
[1740062362113,3.2078,2757.6,2757.5,0.7252]
[1740062362309,2.96,2757.8,2757.7,0.72515]
[1740062362607,3.21324149,2758.2,2757.7,0.72515]
[1740062362608,0.00544149,2758.2,2758.1,0.72504]
[1740062363403,0.00544149,2758.2,2758.1,3.35504]
[1740062363611,3.7471,2759.0,2758.1,3.35504]
[1740062363612,0.5393,2759.0,2758.1,8.63]
[1740062363910,0.5602,2759.1,2758.9,0.72483]
[1740062364108,0.5602,2759.1,2758.7,3.2078]
[1740062364312,0.5835,2759.4,2758.7,3.2078]
[1740062364514,2.629,2759.7,2758.7,3.2078]
[1740062364515,0.72476,2759.2,2758.7,3.2078]
[1740062364713,0.72477,2759.2,2758.7,3.2078]
[1740062365107,0.72477,2759.2,2758.9,0.72482]
[1740062365308,0.00544149,2759.3,2758.7,3.2078]
[1740062365510,0.72479,2759.1,2758.9,0.72482]
[1740062365707,0.00544149,2759.3,2759.0,0.72481]
[1740062365914,0.00544149,2759.3,2758.7,3.2078]
[1740062366206,0.72477,2759.2,2758.9,0.72481]
[1740062366426,0.73018149,2759.3,2759.0,0.7248]
[1740062366715,0.00544149,2759.3,2759.0,0.72479]
[1740062366912,0.00544149,2759.3,2758.7,3.2078]
[1740062367114,0.00544149,2759.3,2759.1,0.72477]
[1740062367414,0.00544149,2759.3,2759.0,3.2078]
[1740062367616,0.00544149,2759.3,2759.1,0.72477]
[1740062367813,0.00544149,2759.3,2759.0,3.2078]
[1740062368014,0.00544149,2759.3,2759.2,0.72476]
[1740062369326,0.00544149,2759.3,2759.2,1.30266]
[1740062369509,0.72456,2760.0,2759.8,0.72458]
[1740062369819,4.3067,2760.1,2759.5,1.8117]
[1740062369820,0.5596,2760.1,2759.5,1.8117]
[1740062370022,0.5596,2760.1,2760.0,0.72455]
[1740062370219,0.72459,2759.9,2759.7,3.93241]
[1740062370531,3.7674,2760.1,2759.3,3.2078]
[1740062370816,0.72467,2759.6,2759.5,0.00544149]
[1740062371421,3.7618,2759.8,2759.5,0.00544149]
[1740062371813,3.2078,2759.8,2759.5,0.00544149]
[1740062372016,0.00544149,2760.1,2759.6,3.2078]
[1740062372316,0.00544149,2760.1,2759.8,0.72459]
[1740062372622,0.72997149,2760.1,2759.8,0.72459]
[1740062372921,0.00544149,2760.1,2759.9,0.72456]
[1740062373124,0.00544149,2760.1,2759.6,3.2078]
[1740062373426,0.00544149,2760.1,2760.0,0.72455]
[1740062374420,0.00544149,2760.1,2760.0,3.93235]
[1740062375720,0.5562,2760.8,2760.0,3.2078]
[1740062375925,0.5562,2760.8,2760.3,3.2078]
[1740062376228,1.28054,2760.8,2760.7,0.72436]
[1740062376420,3.2078,2760.9,2760.4,0.5675]
[1740062376626,3.93212,2760.9,2760.4,3.1845]
[1740062376924,3.21324149,2760.9,2760.7,0.72435]
[1740062377223,0.00544149,2760.9,2760.8,0.72434]
[1740062377821,0.00544149,2760.9,2760.6,3.2078]
[1740062378127,0.00544149,2760.9,2760.4,3.1845]
[1740062378516,0.72437,2760.7,2760.4,3.1845]
[1740062378727,0.72444,2760.4,2760.3,3.2078]
[1740062379024,0.72443,2760.5,2760.3,3.93227]
[1740062379328,0.72444,2760.4,2760.3,3.2078]
[1740062379628,3.2078,2760.7,2759.9,0.5452]
[1740062379832,0.7245,2760.2,2760.0,0.72454]
[1740062380124,0.72444,2760.4,2760.2,0.72448]
[1740062380422,0.72445,2760.4,2760.2,0.72448]
[1740062380729,0.72442,2760.5,2760.3,0.72445]
[1740062380927,1.1226,2760.6,2760.0,3.2078]
[1740062381129,0.5618,2760.6,2760.0,3.2078]
[1740062381432,0.72977149,2760.9,2760.6,0.72438]
[1740062381627,0.00544149,2760.9,2760.1,5.587]
[1740062381927,0.72442,2760.5,2760.1,5.587]
[1740062382125,0.72448,2760.3,2760.1,6.31151]
[1740062382324,3.2078,2760.6,2760.0,3.2078]
[1740062382522,3.2078,2760.3,2759.7,2.975]
[1740062382829,0.72454,2760.1,2759.9,0.72456]
[1740062383025,0.5584,2760.2,2759.8,0.72459]
[1740062383226,0.72456,2760.0,2759.8,0.72458]
[1740062383523,0.5584,2760.2,2759.7,2.975]
[1740062384123,0.72454,2760.1,2759.9,0.72456]
[1740062384323,0.5584,2760.2,2759.5,0.00544149]
[1740062384522,0.72459,2759.9,2759.7,0.72462]
[1740062384726,0.5584,2760.2,2759.7,0.72462]
[1740062384931,0.5584,2760.2,2759.5,5.83224149]
[1740062385229,0.72458,2759.9,2759.7,0.72461]
[1740062385428,0.5584,2760.2,2759.5,5.83224149]
[1740062386024,3.2078,2760.3,2759.5,7.64389149]
[1740062386526,0.7245,2760.2,2760.0,0.72452]
[1740062386830,3.93228,2760.3,2759.5,7.64389149]
[1740062387018,3.2078,2760.3,2759.6,0.574]
[1740062387224,3.2078,2760.3,2759.8,3.2078]
[1740062387423,3.2078,2760.7,2760.1,3.2078]
[1740062387624,3.2078,2760.7,2760.3,0.72445]
[1740062387625,0.72442,2760.5,2760.3,0.72445]
[1740062387825,0.72441,2760.6,2760.1,3.2078]
[1740062388125,0.72442,2760.5,2760.3,0.72445]
[1740062388319,3.2078,2760.7,2760.1,3.2078]
[1740062388525,0.72442,2760.5,2760.1,3.2078]
[1740062388725,0.72441,2760.6,2760.4,0.72443]
[1740062388920,3.2078,2760.7,2760.4,0.72442]
[1740062389125,0.00544149,2760.9,2760.2,1.81121]
[1740062389329,0.00544149,2760.9,2760.8,0.72434]
[1740062389832,0.00544149,2760.9,2760.5,5.8228]
[1740062390133,0.00544149,2760.9,2760.8,0.72434]
[1740062390532,0.00544149,2760.9,2760.8,3.93214]
[1740062391234,0.5599,2761.7,2760.8,3.2078]
[1740062391235,3.2078,2761.7,2760.8,3.2078]
[1740062391439,0.72423,2761.3,2761.0,0.72426]
[1740062391734,0.72427,2761.1,2760.9,3.3433]
[1740062391932,1.81032,2761.6,2760.9,2.619]
[1740062392129,0.72424,2761.2,2761.0,0.72427]
[1740062392332,0.72423,2761.2,2761.0,0.72971149]
[1740062392633,3.2078,2761.1,2760.2,3.2078]
[1740062392839,3.2078,2760.8,2760.2,3.2078]
[1740062393033,0.72453,2760.1,2759.9,0.5586]
[1740062393230,3.2078,2760.5,2759.9,1.28316]
[1740062393427,3.2078,2760.9,2760.0,3.2078]
[1740062393731,2.624,2760.8,2760.1,1.26891]
[1740062393931,3.2045,2760.8,2760.4,0.72443]
[1740062394236,0.72438,2760.7,2760.5,0.72441]
[1740062394433,3.2165,2760.8,2760.6,0.72437]
[1740062394741,3.2165,2760.8,2760.2,0.00544149]
[1740062395332,2.633,2761.1,2760.4,3.2078]
[1740062395636,2.633,2761.1,2760.8,3.2078]
[1740062395933,2.633,2761.1,2760.8,3.93213]
[1740062396136,0.72431,2760.9,2760.8,3.2078]
[1740062396334,0.72429,2761.0,2760.8,3.2078]
[1740062396533,0.72431,2760.9,2760.8,3.2078]
[1740062396736,5.8418,2761.2,2760.8,3.2078]
[1740062396935,0.7243,2761.0,2760.8,3.2078]
[1740062397137,0.72431,2760.9,2760.8,3.2078]
[1740062397337,0.72431,2761.0,2760.8,3.2078]
[1740062397637,3.21324149,2761.5,2760.8,3.2078]
[1740062397831,0.72423,2761.2,2760.9,0.72429]
[1740062398031,0.72427,2761.1,2760.9,0.72429]
[1740062398233,5.59215149,2761.5,2760.8,3.2078]
[1740062398433,0.7243,2761.0,2760.8,3.2078]
[1740062398628,0.72431,2760.9,2760.8,3.2078]
[1740062398834,0.7243,2761.0,2760.8,3.93213]
[1740062399037,0.72427,2761.1,2760.8,3.2078]
[1740062399336,3.78174149,2761.5,2760.8,3.2078]
[1740062399536,0.7242,2761.4,2761.1,0.72424]
[1740062399739,3.78174149,2761.5,2760.8,3.2078]
[1740062399933,0.00544149,2761.5,2761.1,3.2078]
[1740062400138,0.00544149,2761.5,2761.4,0.72418]
[1740062400436,0.00544149,2761.5,2761.0,0.546]
[1740062400640,0.00544149,2761.5,2761.0,0.72426]
[1740062400934,3.21324149,2761.5,2760.9,2.627]
[1740062401147,3.2078,2761.1,2760.7,0.5473]
[1740062401333,0.5686,2761.4,2760.7,0.5473]
[1740062401533,0.72422,2761.3,2761.1,0.72424]
[1740062401731,0.00544149,2761.5,2761.4,0.72418]
[1740062402033,3.2078,2763.2,2761.4,9.52092943]
[1740062402233,3.2078,2763.2,2762.5,3.2078]
[1740062402433,3.93152,2763.2,2762.8,0.7238]
[1740062402736,3.2078,2763.2,2762.5,3.2078]
[1740062402934,3.2078,2763.2,2762.6,0.5528]
[1740062403136,3.2078,2762.9,2762.6,0.00543144]
[1740062403435,0.72384,2762.7,2762.6,0.00543144]
[1740062403829,3.2078,2762.9,2762.6,0.00543144]
[1740062404029,0.72383,2762.8,2762.6,0.00543144]
[1740062404234,3.25453144,2763.1,2762.6,0.00543144]
[1740062404430,0.72384,2762.7,2762.6,0.00543144]
[1740062404840,0.7238,2762.9,2762.6,0.00543144]
[1740062405038,0.00543144,2763.1,2762.8,3.2078]
[1740062405427,0.00543144,2763.1,2763.0,0.72376]
[1740062405629,0.00543144,2763.1,2762.8,3.2078]
[1740062406437,0.00543144,2763.1,2762.9,0.72379]
[1740062406646,0.00543144,2763.1,2763.0,1.31316]
[1740062407030,5.8728,2764.2,2763.0,3.2544]
[1740062407336,5.8728,2764.2,2763.3,0.72368]
[1740062407642,5.8728,2764.2,2763.2,3.2078]
[1740062407840,0.72351,2764.0,2763.5,3.93141]
[1740062408143,3.2078,2764.2,2763.8,0.72353]
[1740062408339,3.2078,2764.2,2763.7,0.72356]
[1740062408340,0.00543144,2764.0,2763.7,0.72356]
[1740062408536,0.00543144,2764.0,2763.6,0.5813]
[1740062408537,3.2078,2765.1,2763.8,3.2078]
[1740062408740,3.2078,2765.1,2763.6,6.5813]
[1740062408741,3.2078,2765.1,2764.3,3.2078]
[1740062408941,0.72333,2764.7,2764.3,3.2078]
[1740062409244,3.2078,2765.1,2764.3,3.2078]
[1740062409541,3.2078,2765.1,2764.0,3.2078]
[1740062409743,0.72344,2764.3,2764.0,3.2078]
[1740062410040,3.2078,2764.8,2764.3,0.00543144]
[1740062410239,0.72335,2764.6,2764.3,0.00543144]
[1740062410431,3.2078,2764.8,2764.3,0.00543144]
[1740062410631,0.00355752,2765.0,2764.6,3.2078]
[1740062410832,0.00355752,2765.0,2764.9,3.93106]
[1740062411037,0.00355752,2765.0,2764.9,6.63706]
[1740062411740,0.00355752,2765.0,2764.9,5.9138]
[1740062412046,0.72680752,2765.0,2764.7,1.1442]
[1740062412240,0.72679752,2765.0,2764.7,1.1442]
[1740062412438,0.00355752,2765.0,2764.9,3.2078]
[1740062412643,0.00355752,2765.0,2764.7,1.1442]
[1740062412839,0.00355752,2765.0,2764.7,7.057]
[1740062413136,0.00355752,2765.0,2764.0,20.073]
[1740062413137,0.00355752,2765.0,2764.4,5.9118]
[1740062413339,0.72331,2764.8,2764.4,5.9118]
[1740062413543,0.00355752,2765.0,2764.4,5.9118]
[1740062413740,0.72328,2764.9,2764.4,5.9118]
[1740062413946,0.00355752,2765.0,2764.4,5.9118]
[1740062414147,0.72329,2764.9,2764.4,3.93118]
[1740062414440,0.00355752,2765.0,2764.8,3.2078]
[1740062414744,0.00355752,2765.0,2764.6,2.7]
[1740062414938,0.00355752,2765.0,2764.7,0.7233]
[1740062415240,0.00355752,2765.0,2764.8,3.2078]
[1740062415646,0.00355752,2765.0,2764.9,0.72326]
[1740062415941,0.00355752,2765.0,2764.8,3.2078]
[1740062416146,0.00355752,2765.0,2764.8,6.1828]
[1740062416342,0.00355752,2765.0,2764.9,0.72326]
[1740062416540,0.00355752,2765.0,2764.9,1.84886]
[1740062416937,0.00355752,2765.0,2764.9,4.82386]
[1740062417146,5.9118,2766.2,2765.6,0.72307]
[1740062417347,3.2078,2766.2,2765.6,0.72307]
[1740062417537,3.2078,2766.2,2765.7,0.72305]
[1740062417741,0.72297,2766.1,2765.7,0.72303]
[1740062418048,0.72302,2765.9,2765.6,6.63386]
[1740062418349,0.72305,2765.7,2765.6,5.91623144]
[1740062418548,0.72305,2765.7,2765.6,2.70843144]
[1740062418953,0.72305,2765.7,2765.6,0.00543144]
[1740062422145,0.5889,2765.8,2765.6,0.00543144]
[1740062422348,0.72305,2765.7,2765.6,0.00543144]
[1740062424253,0.72305,2765.7,2765.6,1.44e-06]
[1740062424555,3.41005,2765.7,2765.6,1.44e-06]
[1740062424749,3.98385,2765.7,2765.6,1.44e-06]
[1740062425054,9.98385,2765.7,2765.6,1.44e-06]
[1740062426142,1.80839,2764.6,2764.0,0.5861]
[1740062426459,1.80857,2764.3,2763.5,3.2078]
[1740062426757,0.7236,2763.6,2763.5,3.2078]
[1740062426951,3.2078,2764.1,2763.5,3.2078]
[1740062427451,0.00543144,2764.1,2763.5,3.93684144]
[1740062427655,0.00543144,2764.1,2763.8,3.2078]
[1740062428152,3.2078,2765.2,2763.8,12.1828]
[1740062428356,0.72333,2764.7,2764.3,0.72341]
[1740062428552,0.551,2765.1,2764.3,0.535]
[1740062428749,0.72339,2764.4,2764.3,0.535]
[1740062429048,0.72338,2764.5,2764.3,0.535]
[1740062429257,0.72339,2764.4,2764.3,0.535]
[1740062429754,3.2078,2764.8,2763.9,7.76721]
[1740062429755,0.72346,2764.2,2763.9,7.76721]
[1740062429951,3.2078,2764.4,2763.9,3.2078]
[1740062430149,3.5314,2765.0,2764.2,3.2078]
[1740062430150,0.72342,2764.3,2764.2,3.2078]
[1740062430353,3.2078,2764.8,2763.7,3.7893]
[1740062430553,3.2078,2764.4,2763.7,3.7893]
[1740062431051,0.72348,2764.1,2763.8,0.72354]
[1740062431247,0.72347,2764.1,2763.8,0.72354]
[1740062431647,0.72353,2763.9,2763.7,3.7893]
[1740062431849,0.72352,2764.0,2763.7,4.51287]
[1740062432051,0.72353,2763.9,2763.7,3.7893]
[1740062432357,0.72355,2763.8,2763.7,3.7893]
[1740062432553,0.72358,2763.7,2763.6,0.535]
[1740062433252,3.2078,2764.1,2763.6,0.535]
[1740062433454,0.72353,2763.9,2763.6,1.25859]
[1740062433654,3.2078,2764.1,2763.6,0.535]
[1740062434056,0.72356,2763.8,2763.6,0.535]
[1740062434357,0.72349,2764.1,2763.8,0.72354]
[1740062434754,0.5721,2764.2,2763.8,0.72354]
[1740062435059,3.2078,2764.5,2764.1,0.72347]
[1740062435356,3.2078,2764.5,2763.7,5.8978]
[1740062435551,0.72345,2764.2,2763.7,5.8978]
[1740062435751,0.72345,2764.2,2763.9,0.7235]
[1740062435947,3.2078,2764.5,2763.7,5.8978]
[1740062436150,0.72343,2764.3,2764.1,0.72347]
[1740062436351,3.2078,2764.5,2763.7,5.8978]
[1740062436651,0.72346,2764.2,2763.7,5.8978]
[1740062436852,0.72346,2764.2,2764.0,0.72349]
[1740062437155,3.2078,2764.5,2764.0,0.72349]
[1740062437358,0.72345,2764.2,2763.7,5.8978]
[1740062437652,3.2078,2764.5,2764.0,0.72349]
[1740062437862,0.72351,2764.0,2763.8,1.30373]
[1740062438151,0.72352,2763.9,2763.8,1.30375]
[1740062438659,5.01626,2764.5,2763.8,0.5802]
[1740062439051,0.72349,2764.1,2763.8,0.5802]
[1740062439355,0.72351,2764.0,2763.9,0.72352]
[1740062439660,5.01625,2764.5,2763.9,0.72351]
[1740062439951,0.7235,2764.0,2763.9,0.72351]
[1740062440155,3.2078,2764.4,2763.8,0.5802]
[1740062440359,0.72351,2764.0,2763.9,0.72352]
[1740062440550,3.2078,2764.4,2763.8,0.5802]
[1740062440746,0.72352,2763.9,2763.8,1.30373]
[1740062440950,0.72349,2764.1,2764.0,0.72349]
[1740062441254,0.72351,2764.0,2763.9,0.72351]
[1740062441757,1.80845,2764.5,2763.8,0.5802]
[1740062442651,5.01615,2764.7,2763.8,0.5802]
[1740062442957,1.80845,2764.5,2764.0,3.2078]
[1740062443154,0.72347,2764.1,2764.0,3.93129]